[Event "European-ch Seniors 2018"]
[Site "Drammen"]
[Date "2018.08.04"]
[Round "1"]
[White "Ogaard, Leif"]
[Black "Hewson, Brian Wr"]
[Result "1-0"]
[ECO "A28"]
[WhiteElo "2386"]
[BlackElo "2012"]
[Annotator "NA"]
[PlyCount "75"]
[EventDate "2018.08.04"]
[EventType "swiss"]
[EventCountry "NOR"]
[SourceTitle "playchess.com"]
[Source "ChessBase"]
[SourceQuality "1"]
[TimeControl "40/5400+30:1800+30"]

1. c4 {[%emt 0:00:00]} e5 {[%emt 0:00:00]} 2. Nc3 {[%emt 0:00:00]} Nc6 {[%emt 0:02:07]} 3. Nf3 {[%emt 0:00:29]} Nf6 {[%emt 0:02:46]} 4. e3 {[%emt 0:00:28]} Be7 {[%emt 0:01:19]} 5. a3 {[%emt 0:01:11]} a5 {[%emt 0:03:25]} 6. Qc2 {[%emt 0:02:26]} d6 {[%emt 0:01:54]} 7. Be2 {[%emt 0:02:07]} Bg4 {[%emt 0:05:36]} 8. O-O {[%emt 0:01:35]} Qd7 {[%emt 0:01:37]} 9. b3 {[%emt 0:05:32]} O-O {[%emt 0:01:23]} 10. Bb2 {[%emt 0:00:30]} Rfe8 {[%emt 0:06:10]} 11. Rad1 {[%emt 0:07:02]} Bf5 {[%emt 0:06:36]} 12. d3 {[%emt 0:07:01]} h6 {[%emt 0:04:12]} 13. Nd5 {[%emt 0:04:56]} Nxd5 {[%emt 0:01:03]} 14. cxd5 {[%emt 0:00:07]} Nd8 {[%emt 0:02:54]} 15. e4 {[%emt 0:02:21]} Bg4 {[%emt 0:02:24]} 16. h3 {[%emt 0:00:53]} Bxf3 {[%emt 0:00:35]} 17. Bxf3 {[%emt 0:00:10]} c5 {[%emt 0:00:25]} 18. Bg4 {[%emt 0:13:50]} Qb5 {[%emt 0:00:08]} 19. Qc4 {[%emt 0:01:36]} Qxc4 {[%emt 0:07:57]} 20. bxc4 {[%emt 0:00:11]} Bg5 {[%emt 0:00:55]} 21. Bc3 {[%emt 0:01:14]} g6 {[%emt 0:01:42]} 22. Rb1 {[%emt 0:00:32]} h5 {[%emt 0:01:16]} 23. Bd7 {[%emt 0:00:29]} Re7 {[%emt 0:00:28]} 24. Ba4 {[%emt 0:00:10]} f5 {[%emt 0:07:48]} 25. Rb6 {[%emt 0:00:49]} Nf7 {[%emt 0:00:19]} 26. Rfb1 {[%emt 0:00:43]} Ra7 {[%emt 0:00:51]} 27. Bd1 {[%emt 0:09:37]} fxe4 {[%emt 0:01:00]} 28. dxe4 {[%emt 0:00:08]} Rd7 {[%emt 0:02:13]} 29. Ba4 {[%emt 0:01:25]} Re7 {[%emt 0:05:26]} 30. g3 {[%emt 0:01:43]} h4 {[%emt 0:02:46]} 31. gxh4 {[%emt 0:00:50]} Bxh4 {[%emt 0:00:09]} 32. Bd1 {[%emt 0:00:18]} Kg7 {[%emt 0:02:21]} 33. Bg4 {[%emt 0:00:51]} Bf6 {[%emt 0:04:28]} 34. Kg2 {[%emt 0:01:26]} Rc7 {[%emt 0:04:15]} 35. f3 {[%emt 0:06:44]} Bd8 {[%emt 0:05:00]} 36. Rxd6 Re7 {[%emt 0:06:50]} 37. Re6 {[%emt 0:07:28]} b6 {[%emt 0:00:43]} 38. f4 {[%emt 0:01:18]} 1-0

[Event "European-ch Seniors 2018"]
[Site "Drammen"]
[Date "2018.08.04"]
[Round "1"]
[White "Renman, Nils Gustaf"]
[Black "Strand, Kjetil"]
[Result "1/2-1/2"]
[ECO "D18"]
[WhiteElo "2348"]
[BlackElo "1994"]
[Annotator "NA"]
[PlyCount "106"]
[EventDate "2018.08.04"]
[EventType "swiss"]
[EventCountry "NOR"]
[SourceTitle "playchess.com"]
[Source "ChessBase"]
[SourceQuality "1"]
[TimeControl "40/5400+30:1800+30"]

1. d4 {[%emt 0:00:00]} d5 {[%emt 0:00:00]} 2. Nf3 {[%emt 0:00:00]} Nf6 {[%emt 0:00:00]} 3. c4 {[%emt 0:00:00]} c6 {[%emt 0:00:07]} 4. Nc3 {[%emt 0:00:00]} dxc4 {[%emt 0:00:21]} 5. a4 {[%emt 0:00:02]} Bf5 {[%emt 0:00:13]} 6. e3 {[%emt 0:00:06]} e6 {[%emt 0:00:11]} 7. a5 {[%emt 0:00:32]} Bb4 {[%emt 0:06:55]} 8. Qa4 {[%emt 0:00:09]} Qe7 {[%emt 0:01:04]} 9. Bxc4 {[%emt 0:00:16]} O-O {[%emt 0:01:29]} 10. O-O {[%emt 0:00:10]} Nbd7 {[%emt 0:01:38]} 11. Be2 {[%emt 0:00:17]} h6 {[%emt 0:03:18]} 12. Bd2 {[%emt 0:02:17]} Bd6 {[%emt 0:07:46]} 13. a6 {[%emt 0:07:33]} b5 {[%emt 0:03:28]} 14. Qd1 {[%emt 0:11:00]} Rab8 {[%emt 0:01:40]} 15. Re1 {[%emt 0:01:56]} e5 {[%emt 0:04:15]} 16. dxe5 {[%emt 0:01:36]} Nxe5 {[%emt 0:00:25]} 17. Nd4 {[%emt 0:00:26]} Bd7 {[%emt 0:01:49]} 18. f4 {[%emt 0:09:34]} Nc4 {[%emt 0:08:25]} 19. Bxc4 {[%emt 0:08:08]} bxc4 {[%emt 0:00:08]} 20. Qc2 {[%emt 0:00:13]} Bc5 {[%emt 0:06:52]} 21. Na4 {[%emt 0:02:07]} Qd6 {[%emt 0:06:27]} 22. Nxc5 {[%emt 0:09:10]} Qxc5 {[%emt 0:00:10]} 23. Ra4 {[%emt 0:00:17]} Qb6 {[%emt 0:03:09]} 24. Rxc4 {[%emt 0:00:08]} Qxb2 {[%emt 0:01:06]} 25. Nxc6 {[%emt 0:00:31]} Bxc6 {[%emt 0:01:09]} 26. Rxc6 {[%emt 0:00:16]} Rfe8 {[%emt 0:04:18]} 27. Rc1 {[%emt 0:05:06]} Ne4 {[%emt 0:03:30]} 28. Qxb2 {[%emt 0:06:11]} Rxb2 {[%emt 0:00:09]} 29. Bc3 {[%emt 0:00:05]} Nxc3 {[%emt 0:04:49]} 30. R1xc3 {[%emt 0:00:06]} Ra2 {[%emt 0:01:37]} 31. h4 {[%emt 0:06:08]} g6 {[%emt 0:00:47]} 32. Kh2 {[%emt 0:00:32]} Kg7 {[%emt 0:00:27]} 33. Kg3 {[%emt 0:01:34]} h5 {[%emt 0:00:50]} 34. Kf3 {[%emt 0:00:30]} Rb8 {[%emt 0:00:41]} 35. Rd3 {[%emt 0:08:55]} Rbb2 {[%emt 0:06:16]} 36. Rd7 {[%emt 0:01:06]} Rf2+ {[%emt 0:01:39]} 37. Ke4 {[%emt 0:01:24]} Ra4+ {[%emt 0:02:41]} 38. Rd4 {[%emt 0:03:24]} Ra3 {[%emt 0:00:26]} 39. Rd3 {[%emt 0:01:16]} Ra5 {[%emt 0:01:03]} 40. g3 {[%emt 0:00:00]} Ra4+ {[%emt 0:00:00]} 41. Rd4 {[%emt 0:06:05]} Ra3 {[%emt 0:02:11]} 42. Rd3 {[%emt 0:02:05]} Ra4+ {[%emt 0:02:09]} 43. Kd5 {[%emt 0:06:50]} Rfa2 {[%emt 0:01:20]} 44. e4 {[%emt 0:03:57]} Rxa6 {[%emt 0:02:06]} 45. Rxa6 {[%emt 0:00:18]} Rxa6 {[%emt 0:00:05]} 46. Rc3 {[%emt 0:02:00]} Kf6 {[%emt 0:02:54]} 47. e5+ {[%emt 0:03:45]} Ke7 {[%emt 0:08:32]} 48. Rc7+ {[%emt 0:01:22]} Ke8 {[%emt 0:01:03]} 49. Rb7 {[%emt 0:07:47]} Ra3 {[%emt 0:01:03]} 50. Rb8+ {[%emt 0:02:48]} Ke7 {[%emt 0:00:19]} 51. Rb7+ {[%emt 0:00:05]} Kf8 {[%emt 0:00:35]} 52. Rb8+ {[%emt 0:00:05]} Kg7 {[%emt 0:00:21]} 53. Rb7 {[%emt 0:00:05]} Kf8 {[%emt 0:03:50]} 1/2-1/2

[Event "European-ch Seniors 2018"]
[Site "Drammen"]
[Date "2018.08.04"]
[Round "1"]
[White "Clark, Gary M"]
[Black "Ali, Karim"]
[Result "1-0"]
[ECO "E12"]
[WhiteElo "2285"]
[BlackElo "1819"]
[Annotator "NA"]
[PlyCount "41"]
[EventDate "2018.08.04"]
[EventType "swiss"]
[EventCountry "NOR"]
[SourceTitle "playchess.com"]
[Source "ChessBase"]
[SourceQuality "1"]
[TimeControl "40/5400+30:1800+30"]

1. d4 {[%emt 0:00:00]} e6 {[%emt 0:00:06]} 2. c4 {[%emt 0:00:37]} Nf6 {[%emt 0:00:22]} 3. Nf3 {[%emt 0:00:18]} b6 {[%emt 0:00:24]} 4. a3 {[%emt 0:00:38]} Bb7 {[%emt 0:00:29]} 5. Nc3 {[%emt 0:00:29]} d5 {[%emt 0:02:56]} 6. cxd5 {[%emt 0:01:45]} Nxd5 {[%emt 0:00:15]} 7. Qc2 {[%emt 0:00:49]} c5 {[%emt 0:04:14]} 8. e4 {[%emt 0:00:31]} Nxc3 {[%emt 0:02:01]} 9. bxc3 {[%emt 0:00:03]} Nd7 {[%emt 0:01:13]} 10. Bf4 {[%emt 0:00:51]} Rc8 {[%emt 0:01:17]} 11. d5 {[%emt 0:20:15]} exd5 {[%emt 0:01:37]} 12. exd5 {[%emt 0:00:26]} Bxd5 {[%emt 0:00:20]} 13. Rd1 {[%emt 0:01:00]} Qe7+ {[%emt 0:03:27]} 14. Be2 {[%emt 0:07:16]} Bxf3 {[%emt 0:04:41]} 15. gxf3 {[%emt 0:00:09]} c4 {[%emt 0:23:02]} 16. O-O {[%emt 0:02:11]} Qe6 {[%emt 0:07:23]} 17. Rfe1 {[%emt 0:02:06]} Kd8 {[%emt 0:17:19]} 18. Bg3 {[%emt 0:08:03]} Rc6 {[%emt 0:06:53]} 19. Bf1 {[%emt 0:02:09]} Qh6 {[%emt 0:01:30]} 20. Qf5 {[%emt 0:05:16]} Re6 {[%emt 0:02:43]} 21. Qxf7 {[%emt 0:03:53]} 1-0

[Event "European-ch Seniors 2018"]
[Site "Drammen"]
[Date "2018.08.04"]
[Round "1"]
[White "Stebbings, Anthony"]
[Black "Skogheim, Ole Morten"]
[Result "1-0"]
[ECO "B32"]
[WhiteElo "2265"]
[BlackElo "1992"]
[Annotator "NA"]
[PlyCount "61"]
[EventDate "2018.08.04"]
[EventType "swiss"]
[EventCountry "NOR"]
[SourceTitle "playchess.com"]
[Source "ChessBase"]
[SourceQuality "1"]
[TimeControl "40/5400+30:1800+30"]

1. e4 {[%emt 0:00:00]} c5 {[%emt 0:00:00]} 2. Nf3 {[%emt 0:00:00]} Nc6 {[%emt 0:00:00]} 3. d4 {[%emt 0:00:00]} cxd4 {[%emt 0:00:01]} 4. Nxd4 {[%emt 0:00:00]} e5 {[%emt 0:00:17]} 5. Nb5 {[%emt 0:00:00]} d6 {[%emt 0:00:08]} 6. N1c3 {[%emt 0:00:50]} a6 {[%emt 0:00:26]} 7. Na3 {[%emt 0:00:05]} b5 {[%emt 0:00:31]} 8. Nd5 {[%emt 0:00:19]} Nge7 {[%emt 0:00:43]} 9. c4 {[%emt 0:11:21]} Nd4 {[%emt 0:05:56]} 10. Be3 {[%emt 0:11:55]} Nxd5 {[%emt 0:01:47]} 11. cxd5 {[%emt 0:01:52]} Be7 {[%emt 0:01:32]} 12. Bd3 {[%emt 0:06:26]} O-O {[%emt 0:10:05]} 13. O-O {[%emt 0:00:06]} f5 {[%emt 0:02:44]} 14. Bxd4 {[%emt 0:02:00]} exd4 {[%emt 0:00:52]} 15. Nc2 {[%emt 0:03:26]} Bf6 {[%emt 0:07:16]} 16. exf5 {[%emt 0:05:55]} Bb7 {[%emt 0:03:16]} 17. Qf3 {[%emt 0:03:34]} Qa5 {[%emt 0:06:40]} 18. a3 {[%emt 0:03:25]} Rac8 {[%emt 0:03:56]} 19. Rfe1 {[%emt 0:02:15]} Rfe8 {[%emt 0:06:40]} 20. Re6 {[%emt 0:03:56]} Re7 {[%emt 0:11:15]} 21. Nb4 {[%emt 0:05:50]} Rc5 {[%emt 0:09:11]} 22. Rxe7 {[%emt 0:08:07]} Bxe7 {[%emt 0:00:26]} 23. f6 {[%emt 0:00:11]} Bxf6 {[%emt 0:04:52]} 24. Qe4 {[%emt 0:07:23]} Qd8 {[%emt 0:07:08]} 25. Qxh7+ {[%emt 0:00:46]} Kf8 {[%emt 0:01:11]} 26. Bf5 {[%emt 0:06:13]} Bc8 {[%emt 0:10:31]} 27. Bg6 {[%emt 0:03:32]} Ke7 {[%emt 0:03:03]} 28. Nc6+ {[%emt 0:01:34]} Rxc6 {[%emt 0:00:07]} 29. dxc6 {[%emt 0:00:12]} Qa5 {[%emt 0:01:12]} 30. Qg8 {[%emt 0:01:20]} Qd8 {[%emt 0:01:00]} 31. Qf7# 1-0

[Event "European-ch Seniors 2018"]
[Site "Drammen"]
[Date "2018.08.04"]
[Round "1"]
[White "Barle, Janez"]
[Black "Kuznetsova, Luba"]
[Result "1-0"]
[ECO "B40"]
[WhiteElo "2249"]
[BlackElo "1983"]
[Annotator "NA"]
[PlyCount "73"]
[EventDate "2018.08.04"]
[EventType "swiss"]
[EventCountry "NOR"]
[SourceTitle "playchess.com"]
[Source "ChessBase"]
[SourceQuality "1"]
[TimeControl "40/5400+30:1800+30"]

1. e4 {[%emt 0:00:00]} c5 {[%emt 0:00:00]} 2. Nf3 {[%emt 0:00:11]} e6 {[%emt 0:00:05]} 3. Nc3 {[%emt 0:00:16]} Nc6 {[%emt 0:00:57]} 4. Bb5 {[%emt 0:00:32]} Qc7 {[%emt 0:03:52]} 5. O-O {[%emt 0:01:57]} Nge7 {[%emt 0:06:21]} 6. Re1 {[%emt 0:08:50]} d6 {[%emt 0:02:26]} 7. d4 {[%emt 0:07:28]} cxd4 {[%emt 0:07:44]} 8. Nxd4 {[%emt 0:02:23]} Bd7 {[%emt 0:04:40]} 9. Be3 {[%emt 0:14:35]} a6 {[%emt 0:05:44]} 10. Bf1 {[%emt 0:06:22]} Nxd4 {[%emt 0:04:45]} 11. Qxd4 {[%emt 0:00:16]} Nc6 {[%emt 0:04:31]} 12. Qb6 {[%emt 0:00:29]} Qxb6 {[%emt 0:08:28]} 13. Bxb6 {[%emt 0:00:27]} Be7 {[%emt 0:00:46]} 14. Rad1 {[%emt 0:01:46]} Rc8 {[%emt 0:00:52]} 15. f4 {[%emt 0:03:02]} O-O {[%emt 0:01:35]} 16. a3 {[%emt 0:01:01]} g6 {[%emt 0:06:09]} 17. g3 {[%emt 0:01:54]} Rfe8 {[%emt 0:03:01]} 18. Bh3 {[%emt 0:06:55]} Nb8 {[%emt 0:03:48]} 19. Rd2 {[%emt 0:05:57]} Rc6 {[%emt 0:04:05]} 20. Ba7 {[%emt 0:00:55]} Kf8 {[%emt 0:13:09]} 21. e5 {[%emt 0:04:24]} d5 {[%emt 0:01:44]} 22. Bxb8 {[%emt 0:01:33]} Rxb8 {[%emt 0:00:28]} 23. Nxd5 {[%emt 0:00:46]} Bc5+ {[%emt 0:04:37]} 24. Kh1 {[%emt 0:02:04]} Rcc8 {[%emt 0:01:45]} 25. Nf6 {[%emt 0:00:27]} Bc6+ {[%emt 0:04:05]} 26. Bg2 {[%emt 0:00:14]} Kg7 {[%emt 0:00:12]} 27. Bxc6 {[%emt 0:04:24]} Rxc6 {[%emt 0:00:30]} 28. Ne4 {[%emt 0:00:58]} b5 {[%emt 0:02:13]} 29. Rd7 {[%emt 0:00:58]} a5 {[%emt 0:01:18]} 30. Ng5 {[%emt 0:00:41]} Rf8 {[%emt 0:00:32]} 31. Red1 {[%emt 0:00:52]} b4 {[%emt 0:02:20]} 32. axb4 {[%emt 0:04:20]} axb4 {[%emt 0:00:06]} 33. Rb7 {[%emt 0:01:23]} h6 {[%emt 0:00:31]} 34. Ne4 {[%emt 0:00:11]} Bb6 {[%emt 0:00:23]} 35. Rdd7 {[%emt 0:01:59]} Rxc2 {[%emt 0:01:16]} 36. Rxb6 {[%emt 0:01:40]} Ra8 {[%emt 0:00:45]} 37. Rd2 {[%emt 0:00:50]} 1-0

[Event "European-ch Seniors 2018"]
[Site "Drammen"]
[Date "2018.08.04"]
[Round "1"]
[White "Lederman, Leon S"]
[Black "Khmiadashvili, Tamari"]
[Result "1-0"]
[ECO "B01"]
[WhiteElo "2245"]
[BlackElo "1969"]
[Annotator "NA"]
[PlyCount "123"]
[EventDate "2018.08.04"]
[EventType "swiss"]
[EventCountry "NOR"]
[SourceTitle "playchess.com"]
[Source "ChessBase"]
[SourceQuality "1"]
[TimeControl "40/5400+30:1800+30"]

1. e4 {[%emt 0:00:00]} d5 {[%emt 0:00:14]} 2. exd5 {[%emt 0:00:00]} Nf6 {[%emt 0:00:19]} 3. Bb5+ {[%emt 0:00:00]} Bd7 {[%emt 0:01:06]} 4. Bc4 {[%emt 0:00:00]} g6 {[%emt 0:00:32]} 5. Nc3 {[%emt 0:00:10]} Bg7 {[%emt 0:00:24]} 6. d4 {[%emt 0:00:17]} O-O {[%emt 0:00:21]} 7. Nge2 {[%emt 0:00:22]} a6 {[%emt 0:01:08]} 8. a4 {[%emt 0:00:12]} a5 {[%emt 0:00:55]} 9. O-O {[%emt 0:00:48]} Bc8 {[%emt 0:04:42]} 10. h3 {[%emt 0:04:19]} Nbd7 {[%emt 0:01:08]} 11. Nf4 {[%emt 0:00:20]} Nb6 {[%emt 0:02:39]} 12. Bb3 {[%emt 0:00:43]} Ne8 {[%emt 0:01:41]} 13. Ne4 {[%emt 0:07:04]} Nd6 {[%emt 0:05:01]} 14. Nxd6 {[%emt 0:00:55]} exd6 {[%emt 0:01:46]} 15. c3 {[%emt 0:00:19]} Nd7 {[%emt 0:07:30]} 16. Re1 {[%emt 0:05:19]} Nf6 {[%emt 0:01:41]} 17. Qf3 {[%emt 0:00:25]} Bf5 {[%emt 0:06:23]} 18. g4 {[%emt 0:00:54]} Bd7 {[%emt 0:01:53]} 19. Bd2 {[%emt 0:06:37]} Ne8 {[%emt 0:19:16]} 20. Qg3 {[%emt 0:07:07]} Bf6 {[%emt 0:01:48]} 21. Ne6 {[%emt 0:08:07]} Bxe6 {[%emt 0:31:42]} 22. dxe6 {[%emt 0:00:10]} d5 {[%emt 0:03:09]} 23. Bh6 {[%emt 0:26:26]} Ng7 {[%emt 0:01:33]} 24. e7 {[%emt 0:08:13]} Bxe7 {[%emt 0:00:25]} 25. Qe5 {[%emt 0:00:02]} Bf6 {[%emt 0:00:36]} 26. Qxd5 {[%emt 0:00:02]} Qxd5 {[%emt 0:01:13]} 27. Bxd5 {[%emt 0:00:07]} g5 {[%emt 0:01:29]} 28. f4 {[%emt 0:00:54]} gxf4 {[%emt 0:01:46]} 29. Bxf4 {[%emt 0:00:02]} c6 {[%emt 0:00:07]} 30. Bc4 {[%emt 0:01:18]} Bh4 {[%emt 0:00:20]} 31. Re2 {[%emt 0:00:35]} Rfe8 {[%emt 0:00:26]} 32. Kf1 {[%emt 0:00:42]} h5 {[%emt 0:01:41]} 33. Rd1 {[%emt 0:01:44]} hxg4 {[%emt 0:00:18]} 34. hxg4 {[%emt 0:00:02]} Rxe2 {[%emt 0:00:33]} 35. Kxe2 {[%emt 0:00:08]} Re8+ {[%emt 0:00:41]} 36. Kf3 {[%emt 0:00:02]} Bd8 {[%emt 0:00:33]} 37. d5 {[%emt 0:00:15]} cxd5 {[%emt 0:00:24]} 38. Rxd5 {[%emt 0:00:41]} Ne6 {[%emt 0:00:26]} 39. Rd7 {[%emt 0:00:10]} b6 {[%emt 0:00:37]} 40. Bxe6 {[%emt 0:00:00]} fxe6 {[%emt 0:00:00]} 41. Be5 {[%emt 0:01:01]} Be7 {[%emt 0:01:20]} 42. Ke4 {[%emt 0:01:57]} Kf8 {[%emt 0:02:11]} 43. Rb7 {[%emt 0:05:46]} Rc8 {[%emt 0:04:15]} 44. b3 {[%emt 0:09:18]} Rc6 {[%emt 0:04:42]} 45. c4 {[%emt 0:00:22]} Bd8 {[%emt 0:11:21]} 46. Kf4 {[%emt 0:01:01]} Be7 {[%emt 0:05:56]} 47. g5 {[%emt 0:00:31]} Bd6 {[%emt 0:04:31]} 48. g6 {[%emt 0:03:18]} Bxe5+ {[%emt 0:00:11]} 49. Kxe5 {[%emt 0:00:06]} Kg8 {[%emt 0:00:50]} 50. Rd7 {[%emt 0:04:41]} Rc5+ {[%emt 0:00:34]} 51. Kxe6 {[%emt 0:01:12]} Rc8 {[%emt 0:00:35]} 52. Kd6 {[%emt 0:00:51]} Rc5 {[%emt 0:00:11]} 53. Rb7 {[%emt 0:00:16]} Rg5 {[%emt 0:00:08]} 54. Rxb6 {[%emt 0:00:13]} Rxg6+ {[%emt 0:00:05]} 55. Kc5 {[%emt 0:00:27]} Rg5+ {[%emt 0:00:09]} 56. Kc6 {[%emt 0:00:09]} Kf7 {[%emt 0:00:12]} 57. Rb5 {[%emt 0:00:07]} Rg6+ {[%emt 0:00:14]} 58. Kc5 {[%emt 0:00:33]} Rg3 {[%emt 0:00:06]} 59. Kb6 {[%emt 0:00:05]} Ke7 {[%emt 0:00:05]} 60. Kxa5 {[%emt 0:00:08]} Kd6 {[%emt 0:00:16]} 61. Kb6 {[%emt 0:00:10]} Kd7 {[%emt 0:00:12]} 62. Kb7 {[%emt 0:00:18]} 1-0

[Event "European-ch Seniors 2018"]
[Site "Drammen"]
[Date "2018.08.04"]
[Round "1"]
[White "Strutinskaia, Galina"]
[Black "Fridthjofsdottir, Sigurl. Regina"]
[Result "1-0"]
[ECO "D70"]
[WhiteElo "2208"]
[BlackElo "1715"]
[Annotator "NA"]
[PlyCount "65"]
[EventDate "2018.08.04"]
[EventType "swiss"]
[EventCountry "NOR"]
[SourceTitle "playchess.com"]
[Source "ChessBase"]
[SourceQuality "1"]
[TimeControl "40/5400+30:1800+30"]

1. d4 {[%emt 0:00:00]} d5 {[%emt 0:00:00]} 2. c4 {[%emt 0:00:00]} c6 {[%emt 0:00:01]} 3. Nf3 {[%emt 0:00:04]} Nf6 {[%emt 0:00:19]} 4. Nbd2 {[%emt 0:00:43]} dxc4 {[%emt 0:01:29]} 5. Nxc4 {[%emt 0:00:12]} Bf5 {[%emt 0:01:37]} 6. Qb3 {[%emt 0:01:42]} b5 {[%emt 0:06:02]} 7. Nce5 {[%emt 0:00:40]} e6 {[%emt 0:01:23]} 8. a4 {[%emt 0:01:31]} b4 {[%emt 0:13:46]} 9. a5 {[%emt 0:01:36]} Be7 {[%emt 0:03:42]} 10. Bd2 {[%emt 0:01:29]} Nd5 {[%emt 0:13:02]} 11. Qa4 {[%emt 0:02:58]} O-O {[%emt 0:05:04]} 12. Rc1 {[%emt 0:00:50]} Be4 {[%emt 0:05:44]} 13. e3 {[%emt 0:01:25]} a6 {[%emt 0:10:23]} 14. Bd3 {[%emt 0:02:39]} Bxd3 {[%emt 0:09:11]} 15. Nxd3 {[%emt 0:00:11]} Ra7 {[%emt 0:05:37]} 16. Nxb4 {[%emt 0:03:10]} Nxb4 {[%emt 0:00:53]} 17. Bxb4 {[%emt 0:00:08]} Rb7 {[%emt 0:01:20]} 18. Bc3 {[%emt 0:02:57]} Qd5 {[%emt 0:01:54]} 19. O-O {[%emt 0:00:58]} Nd7 {[%emt 0:01:25]} 20. Rfd1 {[%emt 0:05:39]} Rb5 {[%emt 0:02:03]} 21. Qc2 {[%emt 0:05:46]} Rfb8 {[%emt 0:01:34]} 22. e4 {[%emt 0:00:39]} Qh5 {[%emt 0:00:48]} 23. Qd3 {[%emt 0:04:30]} c5 {[%emt 0:00:56]} 24. d5 {[%emt 0:01:02]} exd5 {[%emt 0:02:51]} 25. exd5 {[%emt 0:02:44]} Bd6 {[%emt 0:01:51]} 26. h3 {[%emt 0:02:46]} h6 {[%emt 0:01:08]} 27. Re1 {[%emt 0:00:35]} Rc8 {[%emt 0:04:01]} 28. Re4 {[%emt 0:01:56]} Qg6 {[%emt 0:01:11]} 29. Rce1 {[%emt 0:02:19]} f5 {[%emt 0:01:23]} 30. Re6 {[%emt 0:00:15]} c4 {[%emt 0:01:50]} 31. Qe2 {[%emt 0:03:06]} Qf7 {[%emt 0:00:52]} 32. Rxd6 {[%emt 0:00:08]} Nc5 {[%emt 0:00:59]} 33. Qxc4 {[%emt 0:01:28]} 1-0

[Event "European-ch Seniors 2018"]
[Site "Drammen"]
[Date "2018.08.04"]
[Round "1"]
[White "Biro, Sandor"]
[Black "Gunnarsson, Lennart"]
[Result "1-0"]
[ECO "C11"]
[WhiteElo "2193"]
[BlackElo "1771"]
[Annotator "NA"]
[PlyCount "129"]
[EventDate "2018.08.04"]
[EventType "swiss"]
[EventCountry "NOR"]
[SourceTitle "playchess.com"]
[Source "ChessBase"]
[SourceQuality "1"]
[TimeControl "40/5400+30:1800+30"]

1. e4 {[%emt 0:00:00]} e6 {[%emt 0:00:00]} 2. d4 {[%emt 0:00:00]} d5 {[%emt 0:00:00]} 3. Nc3 {[%emt 0:00:00]} Nf6 {[%emt 0:00:23]} 4. exd5 {[%emt 0:05:08]} exd5 {[%emt 0:01:25]} 5. Nf3 {[%emt 0:00:08]} c6 {[%emt 0:06:43]} 6. Bd3 {[%emt 0:00:47]} Bd6 {[%emt 0:00:45]} 7. O-O {[%emt 0:01:28]} O-O {[%emt 0:00:12]} 8. h3 {[%emt 0:05:56]} Re8 {[%emt 0:03:42]} 9. Bg5 {[%emt 0:04:18]} Nbd7 {[%emt 0:04:36]} 10. Qd2 {[%emt 0:05:10]} Nf8 {[%emt 0:11:11]} 11. Rae1 {[%emt 0:02:05]} Rxe1 {[%emt 0:00:55]} 12. Rxe1 {[%emt 0:00:07]} Ne6 {[%emt 0:02:12]} 13. Be3 {[%emt 0:07:40]} Qc7 {[%emt 0:09:17]} 14. Qd1 {[%emt 0:20:43]} Bd7 {[%emt 0:03:05]} 15. Ne2 {[%emt 0:05:59]} Re8 {[%emt 0:05:56]} 16. c4 {[%emt 0:04:54]} Nf4 {[%emt 0:11:46]} 17. c5 {[%emt 0:15:28]} Nxe2+ {[%emt 0:00:19]} 18. Rxe2 {[%emt 0:00:57]} Bf4 {[%emt 0:05:48]} 19. Bxf4 {[%emt 0:00:28]} Qxf4 {[%emt 0:01:16]} 20. Ne5 {[%emt 0:00:07]} Be6 {[%emt 0:04:57]} 21. g3 {[%emt 0:04:16]} Qh6 {[%emt 0:01:48]} 22. h4 {[%emt 0:00:11]} Qh5 {[%emt 0:09:48]} 23. f3 {[%emt 0:11:01]} Nd7 {[%emt 0:04:58]} 24. Ng4 {[%emt 0:01:03]} f6 {[%emt 0:01:11]} 25. Qe1 {[%emt 0:00:48]} Bf7 {[%emt 0:02:41]} 26. Rxe8+ {[%emt 0:00:24]} Bxe8 {[%emt 0:00:01]} 27. Qe6+ {[%emt 0:01:10]} Qf7 {[%emt 0:00:31]} 28. Qd6 {[%emt 0:00:17]} Nf8 {[%emt 0:01:34]} 29. Kf2 {[%emt 0:01:21]} Qd7 {[%emt 0:02:20]} 30. Qb8 {[%emt 0:00:53]} a6 {[%emt 0:01:21]} 31. Ne3 {[%emt 0:00:19]} Bg6 {[%emt 0:00:20]} 32. Be2 {[%emt 0:01:06]} h5 {[%emt 0:01:02]} 33. Ng2 {[%emt 0:00:51]} Bf7 {[%emt 0:00:59]} 34. Bd3 {[%emt 0:00:23]} g6 {[%emt 0:00:26]} 35. Nf4 {[%emt 0:00:49]} Kg7 {[%emt 0:00:15]} 36. Bf1 {[%emt 0:00:21]} Qe7 {[%emt 0:02:42]} 37. Bh3 {[%emt 0:00:17]} g5 {[%emt 0:00:47]} 38. hxg5 {[%emt 0:00:25]} fxg5 {[%emt 0:00:01]} 39. Nd3 {[%emt 0:00:20]} Be6 {[%emt 0:01:15]} 40. Qe5+ {[%emt 0:00:00]} Qf6 {[%emt 0:00:00]} 41. Bf1 {[%emt 0:20:44]} Qxe5 {[%emt 0:01:12]} 42. Nxe5 {[%emt 0:00:12]} Kf6 {[%emt 0:01:36]} 43. Bd3 {[%emt 0:00:46]} Bf5 {[%emt 0:00:55]} 44. Bxf5 {[%emt 0:04:58]} Kxf5 {[%emt 0:00:09]} 45. Nf7 {[%emt 0:00:13]} Ne6 {[%emt 0:02:44]} 46. Nd6+ {[%emt 0:01:39]} Kf6 {[%emt 0:00:41]} 47. Nxb7 {[%emt 0:02:47]} Nxd4 {[%emt 0:00:17]} 48. Na5 {[%emt 0:01:31]} h4 {[%emt 0:01:27]} 49. gxh4 {[%emt 0:00:51]} gxh4 {[%emt 0:00:10]} 50. Kg2 {[%emt 0:00:52]} Ke6 {[%emt 0:01:47]} 51. Kh3 {[%emt 0:00:53]} Kd7 {[%emt 0:00:35]} 52. Kg4 {[%emt 0:00:58]} Kc7 {[%emt 0:02:30]} 53. f4 {[%emt 0:00:21]} Kd7 {[%emt 0:00:25]} 54. Kxh4 {[%emt 0:00:26]} Ne6 {[%emt 0:00:20]} 55. f5 {[%emt 0:00:31]} Nxc5 {[%emt 0:00:15]} 56. Kg5 {[%emt 0:00:15]} d4 {[%emt 0:01:18]} 57. Kf4 {[%emt 0:00:18]} Nd3+ {[%emt 0:00:43]} 58. Ke4 {[%emt 0:00:06]} Nxb2 {[%emt 0:00:03]} 59. Kxd4 {[%emt 0:00:09]} Na4 {[%emt 0:04:45]} 60. Nc4 {[%emt 0:00:11]} Ke7 {[%emt 0:00:51]} 61. Ke5 {[%emt 0:00:13]} Nc3 {[%emt 0:02:07]} 62. f6+ {[%emt 0:00:11]} Kf7 {[%emt 0:01:54]} 63. Kf5 {[%emt 0:01:00]} Nxa2 {[%emt 0:00:30]} 64. Ne5+ {[%emt 0:00:09]} Kf8 {[%emt 0:00:47]} 65. Ke6 {[%emt 0:00:20]} 1-0